[Event "7th Iberoamerican-ch 2019"]
[Site "Linares"]
[Date "2019.08.12"]
[Round "3.40"]
[White "Garcia Morales, Ivette Ale"]
[Black "Calzetta Ruiz, Monica"]
[Result "1/2-1/2"]
[ECO "A45"]
[WhiteElo "1998"]
[BlackElo "2257"]
[Annotator "NA"]
[PlyCount "70"]
[EventDate "2019.08.10"]
[EventType "swiss"]
[EventCountry "ESP"]
[SourceTitle "playchess.com"]
[Source "ChessBase"]
[SourceQuality "1"]
[TimeControl "5400+30"]

1. d4 {[%emt 0:00:00]} Nf6 {[%emt 0:02:42]} 2. Bg5 {[%emt 0:00:04]} Ne4 {[%emt 0:00:30]} 3. Bf4 {[%emt 0:00:00]} c5 {[%emt 0:00:32]} 4. f3 {[%emt 0:00:00]} Nf6 {[%emt 0:00:45]} 5. d5 {[%emt 0:00:00]} d6 {[%emt 0:00:55]} 6. e4 {[%emt 0:01:51]} g6 {[%emt 0:00:13]} 7. Qd2 {[%emt 0:00:30]} h6 {[%emt 0:09:23]} 8. Bb5+ {[%emt 0:03:02]} Bd7 {[%emt 0:00:19]} 9. a4 {[%emt 0:00:45]} a6 {[%emt 0:00:14]} 10. Bc4 {[%emt 0:04:33]} Bg7 {[%emt 0:01:32]} 11. Nc3 {[%emt 0:00:42]} Qa5 {[%emt 0:05:47]} 12. Nd1 {[%emt 0:05:01]} Qxd2+ {[%emt 0:01:45]} 13. Bxd2 {[%emt 0:03:57]} O-O {[%emt 0:00:32]} 14. Ne2 {[%emt 0:05:18]} b6 {[%emt 0:13:27]} 15. Ra3 {[%emt 0:13:24]} Ra7 {[%emt 0:01:01]} 16. b4 cxb4 {[%emt 0:10:54]} 17. Bxb4 {[%emt 0:06:57]} Rc7 {[%emt 0:00:18]} 18. Bd3 {[%emt 0:00:22]} Rfc8 {[%emt 0:05:39]} 19. Ne3 {[%emt 0:08:15]} Be8 {[%emt 0:01:22]} 20. O-O {[%emt 0:07:00]} Nfd7 {[%emt 0:00:28]} 21. Rb1 {[%emt 0:07:49]} Ne5 {[%emt 0:10:07]} 22. Be1 {[%emt 0:01:40]} Nxd3 23. cxd3 {[%emt 0:13:19]} Nd7 {[%emt 0:05:24]} 24. Nc4 {[%emt 0:00:30]} b5 {[%emt 0:00:58]} 25. axb5 {[%emt 0:01:45]} axb5 {[%emt 0:00:03]} 26. Rxb5 {[%emt 0:01:02]} Ne5 {[%emt 0:02:21]} 27. Rb4 {[%emt 0:00:48]} Nxd3 28. Rxd3 {[%emt 0:00:54]} Rxc4 {[%emt 0:00:37]} 29. Rxc4 {[%emt 0:00:20]} Rxc4 {[%emt 0:00:03]} 30. Bc3 {[%emt 0:00:42]} f5 {[%emt 0:06:19]} 31. exf5 {[%emt 0:01:54]} gxf5 {[%emt 0:00:03]} 32. Bxg7 {[%emt 0:00:48]} Kxg7 {[%emt 0:00:02]} 33. Re3 {[%emt 0:01:55]} Kf8 {[%emt 0:01:50]} 34. g3 {[%emt 0:02:19]} Bf7 {[%emt 0:01:05]} 35. Nf4 {[%emt 0:00:06]} Rd4 1/2-1/2

[Event "7th Iberoamerican-ch 2019"]
[Site "Linares"]
[Date "2019.08.13"]
[Round "4.1"]
[White "Anton Guijarro, David"]
[Black "Henriquez Villagra, Cristobal"]
[Result "1/2-1/2"]
[ECO "D43"]
[WhiteElo "2678"]
[BlackElo "2560"]
[Annotator "ChessBase"]
[PlyCount "95"]
[EventDate "2019.08.10"]
[EventType "swiss"]
[EventCountry "ESP"]
[SourceTitle "playchess.com"]
[Source "ChessBase"]
[SourceQuality "1"]
[TimeControl "5400+30"]

1. c4 {[%emt 0:00:00]} c6 {[%emt 0:03:40]} 2. d4 {[%emt 0:00:47]} d5 {[%emt 0:00:05]} 3. Nf3 {[%emt 0:00:12]} Nf6 {[%emt 0:00:04]} 4. Nc3 {[%emt 0:00:45]} e6 {[%emt 0:00:05]} 5. Bg5 {[%emt 0:01:30]} Nbd7 {[%emt 0:00:14]} 6. cxd5 {[%emt 0:02:00]} exd5 {[%emt 0:00:14]} 7. Qc2 {[%emt 0:00:41]} Be7 {[%emt 0:06:31]} 8. e3 {[%emt 0:00:39]} O-O {[%emt 0:07:00]} 9. Bd3 {[%emt 0:01:24]} Re8 {[%emt 0:01:16]} 10. O-O {[%emt 0:02:06]} Nf8 {[%emt 0:02:05]} 11. h3 {[%emt 0:02:41]} Nh5 {[%emt 0:07:09]} 12. Bxe7 {[%emt 0:01:39]} Rxe7 {[%emt 0:00:06]} 13. b4 {[%emt 0:03:14]} Qd6 {[%emt 0:03:07]} 14. b5 {[%emt 0:02:50]} Bd7 {[%emt 0:16:52]} 15. bxc6 {[%emt 0:09:29]} Bxc6 {[%emt 0:00:08]} 16. Rfc1 {[%emt 0:02:52]} Nf6 {[%emt 0:00:17]} 17. Ne5 {[%emt 0:05:06]} Ne6 {[%emt 0:01:13]} 18. a4 {[%emt 0:07:46]} Rc7 {[%emt 0:03:54]} 19. Qb2 {[%emt 0:10:51]} g6 {[%emt 0:04:56]} 20. Be2 {[%emt 0:04:50]} Be8 {[%emt 0:07:01]} 21. Nb5 {[%emt 0:06:19]} Bxb5 {[%emt 0:04:23]} 22. axb5 {[%emt 0:00:50]} Rxc1+ {[%emt 0:01:28]} 23. Rxc1 {[%emt 0:00:07]} Nd7 {[%emt 0:03:10]} 24. Nd3 {[%emt 0:02:12]} h5 {[%emt 0:04:10]} 25. Qb4 {[%emt 0:03:50]} Qf8 {[%emt 0:04:44]} 26. Bf3 {[%emt 0:02:06]} Nf6 {[%emt 0:00:07]} 27. Qxf8+ {[%emt 0:02:11]} Kxf8 {[%emt 0:00:14]} 28. Nb4 {[%emt 0:00:22]} Rd8 {[%emt 0:02:05]} 29. Ra1 {[%emt 0:00:21]} a6 {[%emt 0:00:20]} 30. bxa6 {[%emt 0:00:19]} bxa6 {[%emt 0:00:05]} 31. Rxa6 {[%emt 0:00:38]} h4 {[%emt 0:01:50]} 32. Ra5 {[%emt 0:04:41]} Nc7 {[%emt 0:00:04]} 33. Nc6 {[%emt 0:03:47]} Rd6 {[%emt 0:03:34]} 34. Rc5 {[%emt 0:02:22]} Ne6 {[%emt 0:00:47]} 35. Rc2 {[%emt 0:00:10]} Rd7 {[%emt 0:01:15]} 36. Bg4 {[%emt 0:01:51]} Nxg4 {[%emt 0:01:23]} 37. hxg4 {[%emt 0:00:05]} Rb7 {[%emt 0:00:02]} 38. Ne5 {[%emt 0:02:50]} Ng5 {[%emt 0:01:12]} 39. Nf3 {[%emt 0:07:26]} Rb1+ {[%emt 0:05:45]} 40. Kh2 {[%emt 0:00:05]} Ne4 {[%emt 0:00:02]} 41. Nxh4 {[%emt 0:03:22]} Rf1 {[%emt 0:00:04]} 42. f3 {[%emt 0:00:22]} Nf2 {[%emt 0:01:11]} 43. Re2 {[%emt 0:00:45]} Nd1 {[%emt 0:00:19]} 44. e4 {[%emt 0:01:21]} dxe4 {[%emt 0:00:21]} 45. fxe4 {[%emt 0:00:38]} Rf4 {[%emt 0:00:22]} 46. g3 {[%emt 0:00:59]} Rxg4 {[%emt 0:00:33]} 47. Kh3 {[%emt 0:00:19]} Rxe4 {[%emt 0:00:05]} 48. Rxe4 1/2-1/2

[Event "7th Iberoamerican-ch 2019"]
[Site "Linares"]
[Date "2019.08.13"]
[Round "4.2"]
[White "Plazuelo Pascual, Juan"]
[Black "Flores, Diego"]
[Result "0-1"]
[ECO "E11"]
[WhiteElo "2403"]
[BlackElo "2600"]
[Annotator "ChessBase"]
[PlyCount "98"]
[EventDate "2019.08.10"]
[EventType "swiss"]
[EventCountry "ESP"]
[SourceTitle "playchess.com"]
[Source "ChessBase"]
[SourceQuality "1"]
[TimeControl "5400+30"]

1. d4 {[%emt 0:00:00]} Nf6 {[%emt 0:00:19]} 2. c4 {[%emt 0:00:00]} e6 {[%emt 0:00:40]} 3. Nf3 {[%emt 0:00:01]} Bb4+ {[%emt 0:01:58]} 4. Bd2 {[%emt 0:00:38]} a5 {[%emt 0:02:26]} 5. a3 {[%emt 0:00:38]} Bxd2+ {[%emt 0:00:44]} 6. Qxd2 {[%emt 0:00:14]} d6 {[%emt 0:24:08]} 7. Nc3 {[%emt 0:00:46]} Nbd7 {[%emt 0:04:15]} 8. g4 {[%emt 0:07:37]} h6 {[%emt 0:11:52]} 9. Rg1 {[%emt 0:05:02]} b6 {[%emt 0:07:28]} 10. O-O-O {[%emt 0:07:54]} Bb7 {[%emt 0:00:30]} 11. h3 {[%emt 0:03:02]} d5 {[%emt 0:11:22]} 12. Ne5 {[%emt 0:14:59]} Nxe5 {[%emt 0:06:03]} 13. dxe5 {[%emt 0:00:14]} Ne4 {[%emt 0:00:07]} 14. Nxe4 {[%emt 0:04:28]} dxe4 {[%emt 0:01:08]} 15. Qxd8+ {[%emt 0:22:51]} Rxd8 {[%emt 0:00:03]} 16. Bg2 {[%emt 0:01:21]} Ke7 {[%emt 0:06:36]} 17. Rxd8 {[%emt 0:07:13]} Rxd8 {[%emt 0:00:13]} 18. Rd1 {[%emt 0:00:09]} Rxd1+ {[%emt 0:07:30]} 19. Kxd1 {[%emt 0:00:04]} a4 {[%emt 0:00:15]} 20. e3 {[%emt 0:01:18]} c5 {[%emt 0:05:20]} 21. Kd2 {[%emt 0:02:24]} f5 {[%emt 0:00:24]} 22. exf6+ {[%emt 0:04:35]} gxf6 {[%emt 0:01:10]} 23. Ke2 {[%emt 0:01:23]} f5 {[%emt 0:02:56]} 24. gxf5 {[%emt 0:00:11]} exf5 {[%emt 0:00:01]} 25. f3 {[%emt 0:00:50]} Ba6 {[%emt 0:03:22]} 26. fxe4 {[%emt 0:00:11]} Bxc4+ {[%emt 0:00:01]} 27. Kd2 {[%emt 0:01:54]} Kf6 {[%emt 0:00:54]} 28. exf5 {[%emt 0:00:16]} Kxf5 {[%emt 0:00:06]} 29. Kc3 {[%emt 0:04:09]} Be6 {[%emt 0:00:56]} 30. Bc6 {[%emt 0:01:00]} Kg5 {[%emt 0:00:19]} 31. Bxa4 {[%emt 0:00:46]} Bxh3 {[%emt 0:00:01]} 32. Bc6 {[%emt 0:06:23]} h5 {[%emt 0:00:23]} 33. b4 {[%emt 0:00:04]} Bf1 {[%emt 0:01:54]} 34. bxc5 {[%emt 0:00:40]} bxc5 {[%emt 0:00:01]} 35. a4 {[%emt 0:00:04]} h4 {[%emt 0:00:08]} 36. Bd7 {[%emt 0:00:47]} Kf6 {[%emt 0:00:27]} 37. Kd2 {[%emt 0:01:51]} Ke7 {[%emt 0:00:32]} 38. Bf5 {[%emt 0:00:38]} h3 {[%emt 0:01:12]} 39. Ke1 {[%emt 0:00:04]} h2 {[%emt 0:01:05]} 40. Be4 {[%emt 0:00:01]} Bd3 {[%emt 0:00:04]} 41. Bg2 {[%emt 0:03:04]} Kd6 {[%emt 0:00:11]} 42. a5 {[%emt 0:00:16]} Ke5 {[%emt 0:00:11]} 43. Kf2 {[%emt 0:00:03]} Ba6 {[%emt 0:01:05]} 44. Ke1 {[%emt 0:00:18]} Bb5 {[%emt 0:00:45]} 45. Kf2 {[%emt 0:00:52]} c4 {[%emt 0:00:34]} 46. e4 {[%emt 0:01:03]} c3 {[%emt 0:00:25]} 47. Ke3 {[%emt 0:00:13]} Ba6 {[%emt 0:00:48]} 48. Bh1 {[%emt 0:00:20]} Bb7 {[%emt 0:00:07]} 49. Kd3 {[%emt 0:00:48]} c2 {[%emt 0:00:10] Kd4+} 0-1

[Event "7th Iberoamerican-ch 2019"]
[Site "Linares"]
[Date "2019.08.13"]
[Round "4.3"]
[White "Delgado Ramirez, Neuris"]
[Black "Salinas Herrera, Pablo"]
[Result "*"]
[WhiteElo "2605"]
[BlackElo "2498"]
[Annotator "ChessBase"]
[PlyCount "35"]
[EventDate "2019.08.10"]
[EventType "swiss"]
[EventCountry "ESP"]
[SourceTitle "playchess.com"]
[Source "ChessBase"]
[SourceQuality "1"]
[TimeControl "5400+30"]

1. e4 {[%emt 0:00:58]} e5 {[%emt 0:02:05]} 2. Nf3 {[%emt 0:00:13]} Nc6 {[%emt 0:00:03]} 3. Bb5 {[%emt 0:00:15]} a6 {[%emt 0:00:04]} 4. Ba4 {[%emt 0:00:04]} d6 {[%emt 0:00:04]} 5. Bxc6+ {[%emt 0:00:56]} bxc6 {[%emt 0:00:05]} 6. d4 {[%emt 0:00:05]} exd4 {[%emt 0:02:26]} 7. Nxd4 {[%emt 0:00:04]} Ne7 {[%emt 0:09:49]} 8. Bg5 {[%emt 0:04:02]} f6 {[%emt 0:08:54]} 9. Be3 {[%emt 0:03:13]} g6 {[%emt 0:02:06]} 10. Nc3 {[%emt 0:01:31]} Rb8 {[%emt 0:06:56]} 11. Qe2 {[%emt 0:02:26]} Bg7 {[%emt 0:12:14]} 12. O-O-O {[%emt 0:00:22]} Qd7 {[%emt 0:00:14]} 13. f4 {[%emt 0:04:12]} O-O {[%emt 0:04:36]} 14. Rhf1 {[%emt 0:01:53]} c5 {[%emt 0:05:27]} 15. Nb3 {[%emt 0:00:43]} Qe6 {[%emt 0:00:04]} 16. h3 {[%emt 0:01:31]} f5 {[%emt 0:09:00]} 17. e5 {[%emt 0:00:20]} Nc6 {[%emt 0:00:39]} 18. Rfe1 {[%emt 0:03:49]} *

[Event "7th Iberoamerican-ch 2019"]
[Site "Linares"]
[Date "2019.08.13"]
[Round "4.4"]
[White "Vazquez Igarza, Renier"]
[Black "Escobar Forero, Alder"]
[Result "1/2-1/2"]
[ECO "B01"]
[WhiteElo "2558"]
[BlackElo "2477"]
[Annotator "ChessBase"]
[PlyCount "39"]
[EventDate "2019.08.10"]
[EventType "swiss"]
[EventCountry "ESP"]
[SourceTitle "playchess.com"]
[Source "ChessBase"]
[SourceQuality "1"]
[TimeControl "5400+30"]

1. e4 {[%emt 0:00:00]} d5 {[%emt 0:00:00]} 2. exd5 {[%emt 0:00:00]} Qxd5 {[%emt 0:00:00]} 3. Nc3 {[%emt 0:00:36]} Qa5 {[%emt 0:01:07]} 4. d4 {[%emt 0:00:46]} Nf6 {[%emt 0:00:54]} 5. Nf3 {[%emt 0:00:19]} c6 {[%emt 0:00:20]} 6. Bc4 {[%emt 0:00:20]} Bf5 {[%emt 0:00:56]} 7. Bd2 {[%emt 0:00:20]} e6 {[%emt 0:01:10]} 8. Qe2 {[%emt 0:02:38]} Bb4 {[%emt 0:04:31]} 9. O-O-O {[%emt 0:00:15]} Nbd7 {[%emt 0:01:43]} 10. a3 {[%emt 0:00:18]} Bxc3 {[%emt 0:00:27]} 11. Bxc3 {[%emt 0:00:08]} Qc7 {[%emt 0:00:19]} 12. Ne5 {[%emt 0:00:16]} Nd5 {[%emt 0:09:07]} 13. Bd2 {[%emt 0:00:46]} h5 {[%emt 0:10:33]} 14. Rhe1 {[%emt 0:02:32]} Nxe5 {[%emt 0:00:37]} 15. dxe5 {[%emt 0:00:09]} O-O-O {[%emt 0:00:24]} 16. Bg5 {[%emt 0:04:54]} Rd7 {[%emt 0:02:19]} 17. Bd3 {[%emt 0:00:19]} f6 {[%emt 0:26:28]} 18. Bxf5 {[%emt 0:02:25]} exf5 {[%emt 0:00:20]} 19. exf6 {[%emt 0:00:47]} gxf6 {[%emt 0:01:11]} 20. Bd2 {[%emt 0:00:07]} 1/2-1/2

[Event "7th Iberoamerican-ch 2019"]
[Site "Linares"]
[Date "2019.08.13"]
[Round "4.5"]
[White "Garriga Cazorla, Pere"]
[Black "Albornoz Cabrera, Carlos Daniel"]
[Result "1/2-1/2"]
[ECO "E32"]
[WhiteElo "2495"]
[BlackElo "2566"]
[Annotator "ChessBase"]
[PlyCount "75"]
[EventDate "2019.08.10"]
[EventType "swiss"]
[EventCountry "ESP"]
[SourceTitle "playchess.com"]
[Source "ChessBase"]
[SourceQuality "1"]
[TimeControl "5400+30"]

1. d4 {[%emt 0:00:00]} Nf6 {[%emt 0:00:00]} 2. c4 {[%emt 0:00:00]} e6 {[%emt 0:00:00]} 3. Nc3 {[%emt 0:00:16]} Bb4 {[%emt 0:00:04]} 4. Qc2 {[%emt 0:00:44]} O-O {[%emt 0:00:07]} 5. Nf3 {[%emt 0:00:04]} c5 {[%emt 0:00:05]} 6. dxc5 {[%emt 0:00:14]} Na6 {[%emt 0:00:06]} 7. g3 {[%emt 0:00:03]} Nxc5 {[%emt 0:00:05]} 8. Bg2 {[%emt 0:00:07]} Nfe4 {[%emt 0:00:08]} 9. O-O {[%emt 0:05:18]} Bxc3 {[%emt 0:00:50]} 10. bxc3 {[%emt 0:00:06]} b6 {[%emt 0:00:03]} 11. Ng5 {[%emt 0:26:22]} d5 {[%emt 0:00:25]} 12. Nxe4 {[%emt 0:00:18]} dxe4 {[%emt 0:00:06]} 13. Bxe4 {[%emt 0:01:10]} Nxe4 {[%emt 0:00:05]} 14. Qxe4 {[%emt 0:00:17]} Ba6 {[%emt 0:00:04]} 15. Ba3 {[%emt 0:00:40]} Re8 {[%emt 0:00:31]} 16. c5 {[%emt 0:03:50]} Qd2 {[%emt 0:18:01]} 17. c4 {[%emt 0:10:20]} Qc3 {[%emt 0:10:55]} 18. Qd3 {[%emt 0:08:11]} Qxc4 {[%emt 0:00:07]} 19. Qxc4 {[%emt 0:00:04]} Bxc4 {[%emt 0:00:06]} 20. Rfe1 {[%emt 0:00:13]} Rec8 {[%emt 0:01:34]} 21. Kf1 {[%emt 0:00:25]} b5 {[%emt 0:01:50]} 22. Rec1 {[%emt 0:02:11]} a5 {[%emt 0:01:39]} 23. Rc2 {[%emt 0:04:16]} Rd8 {[%emt 0:02:20]} 24. f3 {[%emt 0:02:48]} Rd5 {[%emt 0:04:59]} 25. Kf2 {[%emt 0:01:24]} Rc8 {[%emt 0:03:02]} 26. Rac1 {[%emt 0:01:08]} Kf8 {[%emt 0:01:33]} 27. Ke1 {[%emt 0:02:36]} Ke8 {[%emt 0:06:04]} 28. Ra1 {[%emt 0:08:38]} f6 {[%emt 0:03:19]} 29. h4 {[%emt 0:01:53]} Kd7 {[%emt 0:00:53]} 30. Rb1 {[%emt 0:00:33]} Kc7 {[%emt 0:06:09]} 31. Bc1 {[%emt 0:04:26]} Rxc5 {[%emt 0:00:40]} 32. Bd2 {[%emt 0:00:17]} b4 {[%emt 0:09:23]} 33. a3 {[%emt 0:00:16]} bxa3 {[%emt 0:03:18]} 34. Ra1 {[%emt 0:00:16]} Kb7 {[%emt 0:04:54]} 35. Rxa3 {[%emt 0:00:07]} Ka6 {[%emt 0:00:16]} 36. Rc1 {[%emt 0:00:03]} Rb5 {[%emt 0:02:37]} 37. Ra4 {[%emt 0:00:44]} Rbc5 {[%emt 0:00:14]} 38. Rca1 {[%emt 0:00:06]} 1/2-1/2

[Event "7th Iberoamerican-ch 2019"]
[Site "Linares"]
[Date "2019.08.13"]
[Round "4.6"]
[White "Ladron De Guevara Pinto, Paolo"]
[Black "Cruz, Cristhian"]
[Result "1/2-1/2"]
[ECO "E44"]
[WhiteElo "2416"]
[BlackElo "2562"]
[Annotator "ChessBase"]
[PlyCount "35"]
[EventDate "2019.08.10"]
[EventType "swiss"]
[EventCountry "ESP"]
[SourceTitle "playchess.com"]
[Source "ChessBase"]
[SourceQuality "1"]
[TimeControl "5400+30"]

1. d4 {[%emt 0:00:00]} e6 {[%emt 0:00:00]} 2. c4 {[%emt 0:00:00]} Nf6 {[%emt 0:00:00]} 3. Nc3 {[%emt 0:00:00]} Bb4 {[%emt 0:00:21]} 4. e3 {[%emt 0:00:00]} b6 {[%emt 0:00:32]} 5. Nge2 {[%emt 0:00:36]} c5 {[%emt 0:00:59]} 6. a3 {[%emt 0:01:26]} Ba5 {[%emt 0:00:04]} 7. g3 {[%emt 0:05:35]} O-O {[%emt 0:19:30]} 8. Bg2 {[%emt 0:08:13]} d5 {[%emt 0:09:22]} 9. O-O {[%emt 0:10:52]} Bxc3 {[%emt 0:09:50]} 10. Nxc3 {[%emt 0:02:30]} Ba6 {[%emt 0:02:14]} 11. b3 {[%emt 0:01:27]} Nbd7 {[%emt 0:01:14]} 12. Re1 {[%emt 0:10:33]} dxc4 {[%emt 0:21:26]} 13. bxc4 {[%emt 0:06:04]} cxd4 {[%emt 0:05:43]} 14. exd4 {[%emt 0:02:28]} Bxc4 {[%emt 0:00:32]} 15. Bxa8 {[%emt 0:06:08]} Qxa8 {[%emt 0:00:03]} 16. Qa4 {[%emt 0:01:36]} Rc8 {[%emt 0:02:39]} 17. Be3 {[%emt 0:01:49]} a6 {[%emt 0:04:25]} 18. Rac1 {[%emt 0:00:44]} 1/2-1/2

[Event "7th Iberoamerican-ch 2019"]
[Site "Linares"]
[Date "2019.08.13"]
[Round "4.7"]
[White "Huerga Leache, Mikel"]
[Black "Martinez Duany, Lelys Stanley"]
[Result "1-0"]
[ECO "A48"]
[WhiteElo "2440"]
[BlackElo "2535"]
[Annotator "ChessBase"]
[PlyCount "87"]
[EventDate "2019.08.10"]
[EventType "swiss"]
[EventCountry "ESP"]
[SourceTitle "playchess.com"]
[Source "ChessBase"]
[SourceQuality "1"]
[TimeControl "5400+30"]

1. d4 {[%emt 0:01:12]} Nf6 {[%emt 0:00:00]} 2. Nf3 {[%emt 0:00:11]} g6 {[%emt 0:00:26]} 3. c4 {[%emt 0:00:53]} Bg7 {[%emt 0:00:36]} 4. g3 {[%emt 0:00:56]} O-O {[%emt 0:01:43]} 5. Bg2 {[%emt 0:00:29]} c6 {[%emt 0:01:41]} 6. O-O {[%emt 0:00:41]} d5 {[%emt 0:00:05]} 7. Qb3 {[%emt 0:03:31]} Qb6 {[%emt 0:02:48]} 8. Nc3 {[%emt 0:01:08]} Rd8 {[%emt 0:00:06]} 9. Na4 {[%emt 0:01:59]} Qa6 {[%emt 0:01:32]} 10. cxd5 {[%emt 0:02:42]} cxd5 {[%emt 0:00:31]} 11. Nc5 {[%emt 0:01:10]} Qb6 {[%emt 0:01:27]} 12. Bf4 {[%emt 0:07:07]} Qxb3 {[%emt 0:00:59]} 13. axb3 {[%emt 0:00:53]} Nc6 {[%emt 0:00:44]} 14. Rfc1 {[%emt 0:06:28]} Ne8 {[%emt 0:01:22]} 15. e3 {[%emt 0:05:06]} f6 {[%emt 0:24:04]} 16. g4 {[%emt 0:00:45]} Nb4 {[%emt 0:07:30]} 17. Ne1 {[%emt 0:09:15]} b6 {[%emt 0:04:50]} 18. Ncd3 {[%emt 0:02:06]} Nxd3 {[%emt 0:00:09]} 19. Nxd3 {[%emt 0:00:12]} Bxg4 {[%emt 0:00:12]} 20. Bc7 {[%emt 0:10:31]} Nxc7 {[%emt 0:05:14]} 21. Rxc7 {[%emt 0:00:09]} e5 {[%emt 0:00:10]} 22. Nb4 {[%emt 0:07:00]} e4 {[%emt 0:00:45]} 23. Nxd5 {[%emt 0:07:30]} Rxd5 {[%emt 0:00:39]} 24. Bxe4 {[%emt 0:00:02]} Rad8 {[%emt 0:00:48]} 25. Bxd5+ {[%emt 0:00:59]} Rxd5 {[%emt 0:00:06]} 26. Raxa7 {[%emt 0:00:15]} Bf8 {[%emt 0:00:14]} 27. Rcb7 {[%emt 0:02:54]} Rb5 {[%emt 0:11:12]} 28. Kg2 {[%emt 0:05:24]} Be2 {[%emt 0:06:03]} 29. h4 {[%emt 0:02:48]} g5 {[%emt 0:00:55]} 30. Rb8 {[%emt 0:01:58]} Rf5 {[%emt 0:00:41]} 31. Rd7 {[%emt 0:02:51]} Bf3+ {[%emt 0:00:33]} 32. Kg3 {[%emt 0:00:23]} gxh4+ {[%emt 0:02:18]} 33. Kxh4 {[%emt 0:01:27]} Rd5 {[%emt 0:01:48]} 34. Rc7 {[%emt 0:02:29]} Be2 {[%emt 0:04:43]} 35. Rcc8 {[%emt 0:03:34]} Rh5+ {[%emt 0:01:34]} 36. Kg3 {[%emt 0:00:01]} Rg5+ {[%emt 0:00:16]} 37. Kh4 {[%emt 0:00:04]} Rh5+ {[%emt 0:00:53]} 38. Kg3 {[%emt 0:00:01]} Rg5+ {[%emt 0:00:09]} 39. Kf4 {[%emt 0:02:22]} Rg4+ {[%emt 0:01:23]} 40. Kf5 {[%emt 0:00:00]} Rg5+ {[%emt 0:00:17]} 41. Kxf6 {[%emt 0:01:19]} Rg6+ {[%emt 0:00:12]} 42. Ke5 {[%emt 0:00:07]} Rg5+ {[%emt 0:00:26]} 43. Kf4 {[%emt 0:00:35]} Rg4+ {[%emt 0:00:08] Ke4} 44. Kf5 {[%emt 0:00:28]} 1-0

[Event "7th Iberoamerican-ch 2019"]
[Site "Linares"]
[Date "2019.08.13"]
[Round "4.8"]
[White "Sosa, Tomas"]
[Black "Aizpurua, Patrick"]
[Result "1-0"]
[ECO "C84"]
[WhiteElo "2516"]
[BlackElo "2243"]
[Annotator "ChessBase"]
[PlyCount "88"]
[EventDate "2019.08.10"]
[EventType "swiss"]
[EventCountry "ESP"]
[SourceTitle "playchess.com"]
[Source "ChessBase"]
[SourceQuality "1"]
[TimeControl "5400+30"]

1. e4 {[%emt 0:00:22]} e5 {[%emt 0:00:00]} 2. Nf3 {[%emt 0:00:06]} Nc6 {[%emt 0:00:00]} 3. Bb5 {[%emt 0:00:05]} a6 {[%emt 0:00:00]} 4. Ba4 {[%emt 0:00:05]} Nf6 {[%emt 0:00:00]} 5. O-O {[%emt 0:00:05]} Be7 {[%emt 0:00:00]} 6. d3 {[%emt 0:00:43]} b5 {[%emt 0:00:24]} 7. Bb3 {[%emt 0:00:06]} d6 {[%emt 0:00:32]} 8. a4 {[%emt 0:00:07]} Bd7 {[%emt 0:00:06]} 9. c3 {[%emt 0:00:15]} O-O {[%emt 0:00:34]} 10. Bc2 {[%emt 0:00:19]} d5 {[%emt 0:05:16]} 11. exd5 {[%emt 0:07:12]} Nxd5 {[%emt 0:00:09]} 12. Re1 {[%emt 0:00:17]} Bd6 {[%emt 0:21:25]} 13. Nbd2 {[%emt 0:01:23]} Nf6 {[%emt 0:07:41]} 14. Nf1 {[%emt 0:08:29]} h6 {[%emt 0:11:11]} 15. Ng3 {[%emt 0:03:59]} Bc5 {[%emt 0:05:09]} 16. h3 {[%emt 0:15:03]} Re8 {[%emt 0:00:46]} 17. axb5 {[%emt 0:01:40]} axb5 {[%emt 0:00:06]} 18. Rxa8 {[%emt 0:00:05]} Qxa8 {[%emt 0:00:06]} 19. Nh4 {[%emt 0:00:09]} b4 {[%emt 0:21:51]} 20. Nhf5 {[%emt 0:07:27]} bxc3 {[%emt 0:10:25]} 21. bxc3 {[%emt 0:00:07]} Ne7 {[%emt 0:01:52]} 22. Nxg7 {[%emt 0:12:28]} Kxg7 {[%emt 0:01:07]} 23. d4 {[%emt 0:00:04]} exd4 {[%emt 0:05:44]} 24. Nh5+ {[%emt 0:00:10]} Nxh5 {[%emt 0:00:09]} 25. Qxh5 {[%emt 0:00:05]} Qc6 {[%emt 0:02:55]} 26. Re5 {[%emt 0:18:25]} Nf5 {[%emt 0:02:15]} 27. Rxe8 {[%emt 0:00:47]} Bxe8 {[%emt 0:03:00]} 28. Qxf5 {[%emt 0:00:05]} dxc3 {[%emt 0:00:32]} 29. Qh7+ {[%emt 0:01:05]} Kf8 {[%emt 0:00:30]} 30. Bxh6+ {[%emt 0:00:04]} Ke7 {[%emt 0:00:04]} 31. Bg5+ {[%emt 0:00:05]} Kd6 {[%emt 0:00:31]} 32. Qd3+ {[%emt 0:13:02]} Qd5 {[%emt 0:00:18]} 33. Bf4+ {[%emt 0:00:33]} Ke6 {[%emt 0:00:12]} 34. Qxc3 {[%emt 0:00:13]} Kd7 {[%emt 0:00:56]} 35. Bb3 {[%emt 0:01:26]} Qd4 {[%emt 0:00:51]} 36. Qf3 {[%emt 0:00:06]} c6 {[%emt 0:00:48]} 37. h4 {[%emt 0:02:14]} f5 {[%emt 0:00:28]} 38. Bc2 {[%emt 0:00:35]} Qf6 {[%emt 0:00:30]} 39. Qd3+ {[%emt 0:00:22]} Bd4 {[%emt 0:00:32]} 40. Be3 {[%emt 0:01:12]} c5 {[%emt 0:00:18]} 41. Ba4+ {[%emt 0:00:10]} Ke6 {[%emt 0:00:40]} 42. Qa6+ {[%emt 0:01:55]} Kd5 {[%emt 0:00:29]} 43. Bb3+ {[%emt 0:02:26]} Ke4 {[%emt 0:00:32]} 44. Qe2 {[%emt 0:00:06]} f4 1-0